bitfinex/quotes_ETHUSD_20241225
["timestamp","ask_amount","ask_price","bid_price","bid_amount"]
[1735142522412,0.02548345,3478.1,3478.0,4.28709473]
[1735142525722,0.02548345,3478.1,3478.0,4.31584513]
[1735142525922,0.02548345,3478.1,3478.0,4.28709473]
[1735142526162,2.87482,3478.5,3478.0,5.81344377]
[1735142526458,0.02546535,3478.4,3478.0,5.81344377]
[1735142527047,2.90036535,3478.4,3478.0,5.81344377]
[1735142527222,2.8749,3478.4,3478.0,5.81344377]
[1735142527422,0.02546535,3478.3,3478.2,1.79888435]
[1735142527648,2.8749,3478.4,3478.2,3.17497538]
[1735142528061,0.02546535,3478.3,3478.2,3.17497538]
[1735142528465,2.8749,3478.4,3478.2,3.17497538]
[1735142528796,2.8749,3478.4,3478.3,6.27561669]
[1735142529657,2.87475,3478.6,3478.3,6.27561669]
[1735142529968,2.87475,3478.6,3478.3,7.58045277]
[1735142530262,2.87461,3478.8,3478.3,7.58045277]
[1735142530463,2.87467,3478.7,3478.3,7.58045277]
[1735142531026,2.87467,3478.7,3478.5,1.20649233]
[1735142531550,0.8095,3478.9,3478.5,1.20649233]
[1735142531864,2.87471,3478.6,3478.5,1.20649233]
[1735142532063,2.87471,3478.6,3478.4,3.78740631]
[1735142532433,2.87471,3478.6,3478.4,4.90537585]
[1735142533397,2.87471,3478.6,3478.5,3.70004849]
[1735142533993,2.90030796,3478.6,3478.5,3.70004849]
[1735142534494,2.90030796,3478.6,3478.5,2.49371582]
[1735142535987,0.02559796,3478.6,3478.5,2.49371582]
[1735142536165,0.02559796,3478.6,3478.5,3.54255623]
[1735142536367,0.02588726,3478.6,3478.5,3.54255623]
[1735142536559,0.55,3479.0,3478.5,3.54255623]
[1735142536890,2.87466,3478.7,3478.5,3.54255623]
[1735142537387,2.90059726,3478.6,3478.5,3.54255623]
[1735142537595,2.90059726,3478.6,3478.5,3.03736237]
[1735142538498,2.90059726,3478.6,3478.5,3.54068922]
[1735142538997,0.02588726,3478.6,3478.5,3.54068922]
[1735142539178,2.87464,3478.7,3478.5,3.54068922]
[1735142539388,0.02588124,3478.6,3478.5,3.54068922]
[1735142541275,0.79348124,3478.6,3478.5,2.49184881]
[1735142541481,3.66819124,3478.6,3478.5,2.49184881]
[1735142541694,2.87471,3478.6,3478.5,2.49184881]
[1735142542010,2.90060932,3478.6,3478.5,3.69729325]
[1735142542214,0.02589932,3478.6,3478.5,3.69729325]
[1735142542361,2.87449,3478.9,3478.5,5.24720466]
[1735142542571,0.02587521,3478.8,3478.5,5.24720466]
[1735142542775,2.87443,3479.0,3478.5,5.24720466]
[1735142543010,0.02587521,3478.9,3478.5,6.03028218]
[1735142544020,0.02587521,3478.9,3478.7,1.20435028]
[1735142544219,2.90037521,3478.9,3478.7,1.20435028]
[1735142544780,3.62825,3478.8,3478.7,1.20435028]
[1735142545183,3.65412521,3478.8,3478.7,1.20435028]
[1735142546819,3.65412521,3478.8,3478.7,2.49134628]
[1735142550542,3.65412521,3478.8,3478.7,0.99653851]
[1735142551448,0.02587521,3478.8,3478.7,0.99653851]
[1735142551605,2.87455,3478.8,3478.7,1.28570739]
[1735142551810,2.89985796,3478.8,3478.7,1.28570739]
[1735142552849,2.89985796,3478.8,3478.7,3.98462908]
[1735142553914,0.02530796,3478.8,3478.7,5.08178376]
[1735142554452,0.02539234,3478.8,3478.7,3.87743348]
[1735142554741,2.87416,3479.3,3478.8,0.6908]
[1735142554942,2.87416,3479.3,3478.9,0.57725838]
[1735142555164,2.87416,3479.3,3478.9,1.67441306]
[1735142555360,4.07088823,3479.5,3478.9,1.67441306]
[1735142555519,1.19689823,3479.5,3479.3,1.09715468]
[1735142555723,1.19689823,3479.5,3479.4,0.6908]
[1735142555950,0.0682573,3479.7,3479.4,0.86959547]
[1735142556253,0.0682573,3479.7,3479.6,1.09715468]
[1735142557033,0.0682573,3479.7,3479.6,1.78795468]
[1735142558165,0.0682573,3479.7,3479.6,3.18190992]
[1735142559034,0.0682573,3479.7,3479.6,5.51153751]
[1735142559235,0.0682573,3479.7,3479.6,6.69992679]
[1735142560524,0.0682573,3479.7,3479.6,9.69992679]
[1735142560723,0.0682573,3479.7,3479.6,10.90223873]
[1735142561020,2.87335,3480.3,3479.6,10.90223873]
[1735142561416,2.87335,3480.3,3479.6,7.90223873]
[1735142561619,2.87335,3480.3,3479.7,0.98875596]
[1735142561822,0.55,3480.5,3479.7,0.98875596]
[1735142562058,0.8128,3480.1,3479.7,0.98875596]
[1735142562264,3.68629,3480.1,3479.7,0.98875596]
[1735142562884,3.68629,3480.1,3479.7,0.58709292]
[1735142562885,2.87369,3479.9,3479.7,0.58709292]
[1735142563044,4.23661,3479.7,3479.6,3.0]
[1735142564579,2.8743,3479.2,3479.0,2.69341043]
[1735142565690,2.8743,3479.1,3479.0,2.69341043]
[1735142566075,2.8743,3479.1,3478.9,0.56655071]
[1735142566589,0.8128,3479.0,3478.9,0.56655071]
[1735142566885,3.68718,3479.0,3478.9,0.56655071]
[1735142567287,0.8128,3479.0,3478.6,1.49109849]
[1735142567487,2.87456,3478.8,3478.6,1.49109849]
[1735142567716,2.87456,3478.8,3478.7,0.56810432]
[1735142568495,3.6872,3479.0,3478.7,0.56810432]
[1735142569920,2.8744,3479.0,3478.7,0.56810432]
[1735142571622,0.55,3479.2,3478.7,0.56810432]
[1735142571919,3.42447,3478.9,3478.8,0.99514696]
[1735142572932,2.87465,3478.7,3478.4,2.69341043]
[1735142573486,2.87465,3478.7,3478.5,0.58175683]
[1735142573687,3.65155,3478.7,3478.5,0.99532664]
[1735142575721,2.87465,3478.7,3478.5,0.99532664]
[1735142578522,2.87428,3479.2,3478.5,0.99532664]
[1735142578523,3.65119,3479.2,3478.6,0.6908]
[1735142580027,3.65119,3479.2,3478.7,0.99532664]
[1735142581970,2.87429,3479.2,3478.8,0.99532664]
[1735142582319,2.87408,3479.4,3478.8,0.99532664]
[1735142582679,2.87365,3479.9,3479.0,0.6908]
[1735142582818,0.7769,3480.2,3479.0,0.6908]
[1735142583016,0.7769,3480.2,3479.0,3.0]
[1735142583321,0.7769,3480.2,3479.2,3.6908]
[1735142583322,2.8735,3480.1,3479.2,3.6908]
[1735142583521,2.8735,3480.1,3479.3,0.6908]
[1735142584023,0.7769,3480.2,3479.3,0.6908]
[1735142584455,0.7769,3480.2,3479.4,3.68873707]
[1735142584845,0.55,3480.3,3479.5,0.6908]
[1735142585062,2.87332,3480.3,3479.6,0.43795371]
[1735142585435,0.7769,3480.5,3479.6,0.43795371]
[1735142585436,0.55,3480.0,3479.6,0.43795371]
[1735142586035,0.55,3480.0,3479.6,4.12669078]
[1735142587060,0.55,3480.0,3479.7,0.58193475]
[1735142587369,3.42356,3480.0,3479.7,1.57726139]
[1735142588154,0.8154,3479.9,3479.4,1.20231194]
[1735142588458,0.55,3479.6,3479.4,2.31099552]
[1735142589438,0.55,3479.6,3479.4,2.10286956]
[1735142589826,0.55,3479.6,3479.5,0.5682943]
[1735142590344,2.87397,3479.5,3479.4,0.99418598]
[1735142590551,3.42397,3479.5,3479.4,0.99418598]
[1735142590751,3.42397,3479.5,3479.3,2.69359091]
[1735142590752,3.42397,3479.5,3479.3,1.20231194]
[1735142590938,0.55,3479.4,3479.3,1.20231194]
[1735142592063,0.55,3479.6,3479.3,1.7600686]
[1735142592266,2.87391,3479.6,3479.3,0.55775666]
[1735142592465,0.55,3479.5,3479.2,0.58002209]
[1735142593353,3.42398,3479.5,3479.2,0.58002209]
[1735142596187,3.42398,3479.5,3479.0,2.6939425]
[1735142596188,0.8154,3479.4,3479.0,2.6939425]
[1735142596332,0.55,3479.3,3479.0,2.6939425]
[1735142596549,3.4243,3479.1,3479.0,2.6939425]
[1735142597957,4.2397,3479.1,3479.0,2.6939425]
[1735142598193,4.2397,3479.1,3479.0,1.2567525]
[1735142598466,4.2397,3479.1,3478.8,1.80652542]
[1735142598467,0.8154,3478.9,3478.8,0.36924792]
[1735142598664,1.3654,3478.8,3478.7,3.9e-07]
[1735142598871,9.56957759,3478.8,3478.7,9.65e-06]
[1735142599463,5.87471,3478.6,3478.5,9.12e-06]
[1735142599667,7.24011,3478.6,3478.5,9.12e-06]
[1735142600257,0.8154,3478.3,3477.2,0.6908]
[1735142600457,0.55,3477.6,3477.2,0.6908]
[1735142600673,1.3654,3477.6,3476.7,3.68894058]
[1735142600872,0.55,3477.4,3476.7,3.68894058]
[1735142601510,0.8154,3477.6,3476.7,0.6908]
[1735142601807,2.87618,3476.9,3476.6,1.98870715]
[1735142601972,2.87621,3476.8,3476.6,1.98870715]
[1735142602503,2.87584,3477.3,3476.6,1.98870715]
[1735142602504,2.87629,3476.7,3476.6,1.98870715]
[1735142602968,3.42629,3476.7,3476.6,1.98870715]
[1735142603320,2.87676,3476.2,3475.7,3.68894058]
[1735142603458,2.87679,3476.1,3475.7,3.68894058]
[1735142604591,2.87679,3476.1,3475.7,4.25576458]
[1735142604999,2.87679,3476.1,3475.7,1.257624]
[1735142607199,2.87679,3476.1,3475.7,0.6908]
[1735142608165,0.55,3476.5,3475.7,0.6908]
[1735142608362,0.55,3476.8,3475.7,0.6908]
[1735142608567,2.87629,3476.7,3475.8,0.02876809]
[1735142609007,2.87639,3476.6,3475.7,0.6908]
[1735142609824,2.87671,3476.2,3475.6,0.56515365]
[1735142610170,2.87645,3476.6,3475.6,0.56515365]
[1735142610492,0.55,3476.8,3475.6,0.56515365]
[1735142610493,2.87654,3476.4,3475.6,0.56515365]
[1735142611224,5.87582,3477.3,3475.6,0.56515365]
[1735142611225,0.55,3476.6,3475.6,0.97849202]
[1735142611406,2.87672,3476.2,3475.6,0.56515365]
[1735142612170,2.87655,3476.4,3475.6,0.56515365]
[1735142613077,2.87655,3476.4,3475.7,0.02876812]
[1735142613504,3.42642,3476.6,3475.6,0.56515365]
[1735142613675,0.55,3476.6,3475.6,0.56515365]
[1735142613876,2.87663,3476.3,3475.6,0.56515365]
[1735142614076,2.87672,3476.2,3475.6,0.56515365]
[1735142615611,0.7955,3476.1,3475.6,0.56515365]
[1735142615984,2.87686,3476.0,3475.0,0.6908]
[1735142616184,0.55,3475.7,3474.6,0.6908]
[1735142616401,2.87748,3475.3,3474.6,0.6908]
[1735142616719,2.87756,3475.2,3474.6,0.6908]
[1735142617410,2.87756,3475.2,3474.9,0.56682541]
[1735142617598,3.67288,3475.4,3474.9,0.56682541]
[1735142617811,2.87745,3475.3,3474.6,0.6908]
[1735142618471,2.87753,3475.2,3474.6,0.6908]
[1735142620099,0.55,3475.1,3474.6,0.6908]
[1735142620617,0.55,3475.1,3474.6,1.26880403]
[1735142620785,2.87769,3475.1,3474.6,1.26880403]
[1735142621113,0.55,3475.0,3474.6,0.57800403]
[1735142624192,2.8778,3474.9,3474.3,0.6908]
[1735142624392,0.55,3474.8,3474.3,0.6908]
[1735142624730,3.42786,3474.8,3474.5,0.56526962]
[1735142624879,3.42786,3474.8,3474.3,0.6908]
[1735142625606,0.7955,3475.4,3474.3,0.6908]
[1735142625607,0.55,3474.9,3474.3,0.6908]
[1735142625921,2.87763,3475.1,3473.7,2.32962759]
[1735142625922,0.55,3474.5,3473.7,0.6908]
[1735142626097,3.42816,3474.5,3473.7,0.6908]
[1735142627325,3.42816,3474.5,3474.1,0.58949636]
[1735142627524,0.55,3474.5,3474.1,0.58949636]
[1735142627707,2.87836,3474.2,3473.7,0.6908]
[1735142629282,0.55,3474.3,3473.7,0.6908]
[1735142629895,0.55,3474.3,3473.9,0.57699067]
[1735142630325,0.55,3474.5,3473.9,0.57699067]
[1735142630509,0.55,3474.2,3473.9,0.57699067]
[1735142630713,0.8302,3474.6,3473.9,0.57699067]
[1735142630714,0.55,3474.5,3473.9,0.57699067]
[1735142631025,2.87848,3474.1,3473.9,0.57699067]
[1735142632689,2.87848,3474.1,3473.7,0.6908]
[1735142633430,2.87848,3474.1,3473.1,0.6908]
[1735142634203,0.55,3474.0,3473.1,0.6908]
[1735142635025,0.55,3474.0,3473.1,3.57006]
[1735142635201,0.55,3474.2,3473.3,0.6908]
[1735142636231,0.55,3474.5,3473.8,0.6908]
[1735142636431,3.63938,3474.9,3473.9,2.9073441]
[1735142636591,3.63938,3474.9,3474.1,0.6908]
[1735142638141,2.8779,3474.8,3474.0,0.34743672]
[1735142638331,0.55,3474.8,3474.0,0.34743672]
[1735142638520,0.55,3474.5,3474.0,0.34743672]
[1735142638723,0.55,3474.5,3473.9,0.6908]
[1735142639307,0.7616,3474.9,3473.9,3.56938]
[1735142640737,3.63943,3474.9,3473.9,3.56938]
[1735142641667,0.55,3474.8,3473.9,0.6908]
[1735142641804,2.87811,3474.5,3473.9,0.6908]
[1735142641997,0.55,3474.8,3473.9,0.6908]
[1735142642193,0.55,3474.6,3473.9,0.6908]
[1735142642393,0.55,3474.2,3473.3,0.6908]
[1735142642629,3.42837,3474.2,3473.3,0.6908]
[1735142642837,3.42837,3474.2,3473.4,0.65566436]
[1735142643065,0.55,3474.2,3473.8,0.58953203]
[1735142643266,0.55,3474.0,3473.8,0.58953203]
[1735142644033,0.55,3473.9,3473.3,0.6908]
[1735142644271,3.42861,3473.9,3473.3,0.6908]
[1735142645043,3.42861,3473.9,3473.5,0.5898202]
[1735142646079,0.8243,3474.3,3473.5,0.5898202]
[1735142646080,0.55,3474.0,3473.5,0.5898202]
[1735142646476,0.55,3474.2,3473.5,0.5898202]
[1735142646775,0.57555615,3475.6,3473.6,0.6908]
[1735142647071,0.57555615,3475.6,3473.9,3.56933]
[1735142647072,3.70207,3475.0,3473.9,3.56933]
[1735142647243,3.70185,3475.2,3474.1,3.56921]
[1735142647437,0.8243,3475.6,3474.7,0.6908]
[1735142647635,2.87714,3475.7,3474.7,0.6908]
[1735142647968,0.8243,3476.0,3474.8,2.87784]
[1735142647969,2.87696,3475.9,3474.8,2.87784]
[1735142648140,0.8243,3476.0,3474.9,2.8777]
[1735142648347,4.07369823,3476.1,3475.0,3.56844]
[1735142648547,4.07369823,3476.1,3475.1,0.356844]
[1735142648946,2.87688,3476.0,3475.1,0.356844]
[1735142649360,3.70289,3476.4,3475.0,0.6908]
[1735142649557,3.70343,3475.7,3475.0,0.6908]
[1735142649758,3.70343,3475.7,3474.7,0.6908]
[1735142649759,0.8263,3475.7,3474.7,0.6908]
[1735142649960,0.55,3475.2,3474.7,0.6908]
[1735142650165,0.55,3475.1,3474.7,0.6908]
[1735142650479,3.42765,3475.1,3474.5,1.19742803]
[1735142650980,0.55,3474.8,3474.5,1.19742803]
[1735142651740,3.42802,3474.6,3474.5,1.19742803]
[1735142651943,0.55,3474.4,3473.8,1.19742803]
[1735142652143,0.55,3474.2,3473.8,1.19742803]
[1735142652365,2.8786,3473.9,3473.8,1.19742803]
[1735142652685,3.4286,3473.9,3473.8,1.19742803]
[1735142653404,0.55,3473.9,3473.3,3.68226109]
[1735142653608,0.55,3473.7,3473.3,3.68226109]
[1735142654075,3.42881,3473.7,3473.3,3.68226109]
[1735142654997,3.42881,3473.7,3473.0,1.27474202]
[1735142655203,3.42881,3473.7,3473.0,1.52195903]
[1735142655708,2.87845,3474.1,3473.1,0.02879035]
[1735142655868,2.87845,3474.1,3473.1,0.0287877]
[1735142656882,0.55,3474.0,3473.1,2.9080377]
[1735142657378,0.55,3474.0,3473.1,2.87925]
[1735142657607,3.0,3474.3,3473.2,3.3192809]
[1735142657908,0.55,3474.2,3473.2,4.31371892]
[1735142658114,3.42836,3474.2,3473.2,4.31371892]
[1735142658432,3.42836,3474.2,3473.3,0.6908]
[1735142658917,0.55,3474.4,3473.4,2.90778512]
[1735142659226,0.55,3474.4,3473.5,0.73627716]
[1735142660326,0.55,3474.4,3473.5,2.22793419]
[1735142661141,0.55,3474.7,3473.6,0.02878457]
[1735142661285,2.87836,3474.2,3473.6,0.99580069]
[1735142661603,0.55,3474.7,3473.7,0.71958377]
[1735142661910,2.878,3474.7,3473.7,0.6908]
[1735142662087,0.8263,3475.1,3473.7,0.6908]
[1735142662285,2.87804,3474.6,3473.7,0.6908]
[1735142662488,2.8782,3474.4,3473.8,0.57680113]
[1735142662685,2.8783,3474.3,3473.8,0.57680113]
[1735142663276,0.55,3474.4,3473.8,0.57680113]
[1735142665008,0.55,3474.4,3473.9,0.99667592]
[1735142665518,3.4282,3474.4,3473.9,0.99667592]
[1735142666496,2.87832,3474.3,3473.9,0.99667592]
[1735142667424,2.87832,3474.3,3473.7,1.88822803]
[1735142667425,0.55,3474.4,3473.7,0.6908]
[1735142667605,2.8787,3473.8,3473.6,1.19742803]
[1735142668525,0.55,3473.7,3473.6,1.19742803]
[1735142668724,2.87886,3473.6,3473.4,0.99726586]
[1735142669423,0.8097,3473.9,3473.4,0.99726586]
[1735142669424,3.42894,3473.5,3473.4,0.99726586]
[1735142670016,3.42894,3473.5,3473.2,2.37686438]
[1735142670017,3.42894,3473.5,3473.2,0.58023979]
[1735142671950,0.55,3473.6,3473.2,0.58023979]
[1735142673076,2.8785,3474.1,3473.2,0.97955558]
[1735142673216,2.8785,3474.1,3473.4,0.6908]
[1735142674351,0.8097,3474.5,3473.4,0.6908]
[1735142674536,1.19689823,3474.7,3473.5,0.9973573]
[1735142674537,2.8787,3473.8,3473.5,0.9973573]
[1735142674927,3.42885,3473.6,3473.5,0.9973573]
[1735142675170,0.55,3473.6,3473.5,0.9973573]
[1735142675534,0.55,3473.8,3473.5,0.9973573]
[1735142675828,0.55,3473.6,3473.5,0.9973573]
[1735142676042,0.55,3473.6,3473.3,0.9973573]
[1735142676244,3.0,3474.5,3473.3,0.9973573]
[1735142676446,0.55,3473.9,3473.3,0.9973573]
[1735142676677,0.55,3473.9,3473.3,1.02614518]
[1735142677166,0.55,3473.9,3473.3,0.9973573]
[1735142677368,3.42866,3473.9,3473.3,0.9973573]
[1735142677732,3.42866,3473.9,3473.3,2.19478533]
[1735142678987,2.87874,3473.8,3473.3,2.19478533]
[1735142679187,2.87874,3473.8,3473.3,2.49303085]
[1735142679693,0.55,3473.9,3473.3,2.49303085]
[1735142679868,0.55,3473.9,3473.3,3.16884318]
[1735142680549,0.55,3473.9,3473.3,3.19763111]
[1735142680993,2.87863,3473.9,3473.3,3.16884318]
[1735142681196,2.87863,3473.9,3473.3,2.49303085]
[1735142681709,0.55,3474.2,3473.3,2.49303085]
[1735142681853,0.8128,3474.1,3473.4,0.9973573]
[1735142682054,2.87888,3473.6,3473.4,0.9973573]
[1735142683555,2.87888,3473.6,3473.3,1.49567355]
[1735142683556,2.87888,3473.6,3473.2,0.58023979]
[1735142688454,3.42864,3473.9,3473.2,0.58023979]
[1735142688591,0.55,3473.7,3473.2,0.58023979]
[1735142689222,0.55,3473.5,3473.1,1.49567355]
[1735142689388,2.87902,3473.4,3473.1,1.49567355]
[1735142689820,0.55,3473.5,3473.1,1.49567355]
[1735142690023,0.55,3473.5,3473.3,0.99708311]
[1735142690827,0.55,3473.7,3473.3,0.99708311]
[1735142690997,0.55,3473.6,3473.3,0.99708311]
[1735142691196,0.55,3473.6,3473.1,2.19451114]
[1735142691530,3.42886,3473.6,3473.1,2.19451114]
[1735142692337,0.55,3473.7,3473.1,2.86894149]
[1735142692495,0.55,3473.7,3473.1,4.36461504]
[1735142693408,0.55,3473.7,3473.2,0.99708311]
[1735142695272,2.87877,3473.7,3473.2,0.99708311]
[1735142695435,0.55,3473.6,3473.2,0.99708311]
[1735142696186,2.87901,3473.5,3473.2,0.99708311]
[1735142696318,0.55,3473.4,3473.2,0.99708311]
[1735142696755,3.4291,3473.3,3473.2,0.99708311]
[1735142698032,2.87928,3473.1,3472.9,2.69310158]
[1735142698320,2.87913,3473.3,3472.9,2.69310158]
[1735142698528,3.68525,3473.5,3472.9,2.69310158]
[1735142698933,0.55,3473.4,3472.9,2.69310158]
[1735142699335,0.55,3473.4,3473.0,2.49452278]
[1735142700359,0.55,3473.4,3473.1,2.49452278]
[1735142701221,0.55,3473.4,3473.2,0.6908]
[1735142701425,2.87854,3474.0,3473.2,0.6908]
[1735142701656,1.19689823,3474.1,3473.2,0.6908]
[1735142701855,1.19689823,3474.1,3473.4,0.6908]
[1735142702359,1.19689823,3474.1,3473.7,2.87876]
[1735142702561,1.19689823,3474.1,3473.8,1.21163876]
[1735142703354,3.6841,3474.9,3473.8,2.40906679]
[1735142703618,1.19689823,3475.1,3474.2,0.6908]
[1735142703948,1.19689823,3475.1,3474.2,3.56912]
[1735142704618,2.87762,3475.1,3474.3,0.99834156]
[1735142704823,2.87771,3475.0,3474.4,1.19742803]
[1735142705244,2.87751,3475.3,3474.4,1.19742803]
[1735142705635,2.87756,3475.2,3474.4,1.19742803]
[1735142706049,0.55,3475.1,3474.4,1.19742803]
[1735142706246,3.68365,3475.5,3474.5,3.69144314]
[1735142706452,0.8063,3475.8,3474.7,0.6908]
[1735142706684,2.87721,3475.6,3474.7,0.6908]
[1735142707305,3.68333,3475.8,3474.7,0.6908]
[1735142707690,3.68333,3475.8,3474.8,2.49401511]
[1735142707850,3.68333,3475.8,3474.9,0.67276745]
[1735142708165,0.8063,3475.8,3474.9,0.67276745]
[1735142708487,4.19689823,3476.2,3474.9,0.67276745]
[1735142708488,1.19689823,3476.2,3475.4,0.6908]
[1735142708788,1.19689823,3476.5,3475.4,0.6908]
[1735142709111,1.19689823,3476.5,3475.7,0.56382276]
[1735142709309,2.87667,3476.3,3475.7,0.56382276]
[1735142709788,1.19689823,3476.5,3475.7,0.56382276]
[1735142709962,2.87629,3476.7,3475.8,1.9169943]
[1735142710164,2.87639,3476.6,3475.8,2.3159722]
[1735142710347,2.87639,3476.6,3475.8,1.88822803]
[1735142710551,0.812,3477.1,3475.8,1.88822803]
[1735142710902,2.87649,3476.5,3475.8,1.88822803]
[1735142711102,2.87662,3476.3,3475.8,0.6908]
[1735142711248,2.8768,3476.1,3475.5,1.88822803]
[1735142711448,0.55,3476.3,3475.5,1.88822803]
[1735142711449,2.87691,3476.0,3475.5,1.88822803]
[1735142711677,2.87691,3476.0,3475.5,1.19742803]
[1735142712080,2.87691,3476.0,3475.2,0.6908]
[1735142712676,0.55,3476.3,3475.2,0.6908]
[1735142712866,2.87738,3475.4,3474.9,1.19742803]
[1735142713455,2.87738,3475.4,3474.8,1.26741612]
[1735142714300,0.55,3475.5,3474.8,1.26741612]
[1735142714454,0.55,3475.7,3474.8,1.26741612]
[1735142715693,0.55,3475.4,3474.8,1.26741612]
[1735142718171,3.4274,3475.4,3474.8,1.26741612]
[1735142719086,0.55,3475.7,3474.8,1.26741612]
[1735142719259,0.55,3475.3,3474.8,1.26741612]
[1735142719797,0.55,3475.6,3474.8,1.26741612]
[1735142719984,2.87748,3475.3,3474.8,1.26741612]
[1735142720897,3.68907,3475.8,3474.8,1.26741612]
[1735142721071,3.68905,3475.8,3474.8,1.26741612]
[1735142722190,0.55,3475.7,3474.8,1.26741612]
[1735142722372,0.55,3475.7,3474.9,0.35970437]
[1735142725098,2.87721,3475.6,3474.9,0.35970437]
[1735142725260,0.55,3475.3,3474.8,1.26741612]
[1735142725459,0.55,3475.3,3474.3,0.6908]
[1735142725664,0.55,3475.3,3474.2,1.19742803]
[1735142725665,2.87962759,3475.1,3474.2,1.19742803]
[1735142725865,3.42827,3474.3,3474.2,1.19742803]
[1735142726060,2.87836,3474.2,3474.1,1.79662459]
[1735142726266,4.22046,3474.2,3474.1,1.79662459]
[1735142727566,4.22046,3474.2,3473.1,0.6908]
[1735142727763,2.8787,3473.8,3473.1,0.6908]
[1735142728002,2.8787,3473.8,3473.2,0.33808975]
[1735142729084,2.8787,3473.8,3473.1,0.6908]
[1735142729297,4.22046,3474.2,3473.1,0.6908]
[1735142729298,3.67172759,3474.2,3473.1,0.6908]
[1735142729525,0.55,3474.1,3473.0,0.56559031]
[1735142729707,2.87903,3473.4,3473.0,0.56559031]
[1735142730189,2.87903,3473.4,3472.7,0.6908]
[1735142730493,2.87931,3473.1,3472.7,0.6908]
[1735142731441,2.87931,3473.1,3472.4,1.264149]
[1735142732337,3.42909,3473.4,3472.4,1.264149]
[1735142732497,3.42909,3473.4,3472.5,0.64736966]
[1735142732893,0.7921,3474.1,3472.6,0.6908]
[1735142733342,2.87886,3473.6,3472.6,0.6908]
[1735142733739,2.32962759,3474.3,3472.6,0.6908]
[1735142733740,2.87913,3473.3,3472.6,0.6908]
[1735142734743,0.55,3473.4,3472.6,0.6908]
[1735142734943,0.55,3473.4,3472.7,0.47913387]
[1735142737450,2.87879,3473.7,3472.8,0.6908]
[1735142737610,2.87857,3474.0,3472.8,0.6908]
[1735142738432,2.87837,3474.2,3472.9,0.71958929]
[1735142738650,2.87837,3474.2,3473.1,2.87925]
[1735142738849,0.7727,3474.5,3473.3,0.6908]
[1735142739156,2.87819,3474.4,3473.4,0.02878618]
[1735142739349,0.7727,3474.5,3473.4,0.02878669]
[1735142739521,2.87828,3474.3,3473.4,0.02878669]
[1735142739714,2.87828,3474.3,3473.5,0.6908]
[1735142740110,6.65062,3474.8,3473.5,0.6908]
[1735142740315,3.55,3474.5,3473.5,0.6908]
[1735142740511,0.55,3474.5,3473.5,0.6908]
[1735142740711,2.87836,3474.2,3473.5,0.6908]
[1735142742849,2.87853,3474.0,3473.5,0.6908]
[1735142743048,0.791,3474.2,3473.5,0.6908]
[1735142743256,0.55,3474.1,3473.3,0.58319038]
[1735142743464,2.87852,3474.0,3473.3,0.58319038]
[1735142743666,2.87874,3473.8,3473.3,0.58319038]
[1735142746570,3.42849,3474.1,3473.3,0.58319038]
[1735142746734,2.87886,3473.6,3473.3,0.58319038]
[1735142746935,3.42849,3474.1,3473.3,0.58319038]
[1735142747162,2.87873,3473.8,3473.3,0.58319038]
[1735142747775,2.87852,3474.1,3473.3,0.58319038]
[1735142748075,2.87828,3474.3,3473.5,0.6908]
[1735142748242,0.55,3474.4,3473.5,0.6908]
[1735142749459,2.87851,3474.1,3473.5,0.6908]
[1735142750195,3.55,3474.4,3473.5,0.6908]
[1735142750352,2.87855,3474.0,3473.5,0.6908]
[1735142750546,0.55,3474.4,3473.5,0.6908]
[1735142750849,2.87827,3474.3,3473.5,0.6908]
[1735142751044,2.87836,3474.2,3473.5,0.6908]
[1735142751845,5.87799,3474.7,3473.5,0.6908]
[1735142751846,0.55,3474.3,3473.5,0.6908]
[1735142752040,0.55,3474.6,3473.5,0.6908]
[1735142752873,2.87825,3474.4,3473.6,0.02878654]
[1735142753075,2.87828,3474.3,3473.7,0.6908]
[1735142754061,2.87856,3474.0,3473.7,0.6908]
[1735142754250,0.55,3474.1,3473.0,0.6908]
[1735142754663,2.87911,3473.3,3473.0,0.6908]
[1735142755034,2.87924,3473.2,3473.0,0.6908]
[1735142755234,5.75704,3474.0,3472.7,0.6908]
[1735142755235,0.55,3473.7,3472.7,0.6908]
[1735142755431,2.87935,3473.0,3472.5,1.20076887]
[1735142755682,2.87935,3473.0,3472.4,0.6908]
[1735142756940,2.87935,3473.0,3472.5,0.56717268]
[1735142761652,0.8302,3473.2,3472.5,0.56717268]
[1735142761859,2.87916,3473.3,3472.5,0.56717268]
[1735142763346,3.42895,3473.5,3472.6,0.6908]
[1735142763461,0.8302,3474.1,3472.8,0.6908]
[1735142763664,2.8786,3473.9,3473.0,0.6908]
[1735142763886,2.87872,3473.8,3473.0,0.6908]
[1735142764964,2.87854,3474.0,3473.0,0.6908]
[1735142765295,0.55,3473.9,3473.1,0.02878938]
[1735142765875,2.87837,3474.2,3473.2,0.6908]
[1735142766078,2.87814,3474.5,3473.4,2.32962759]
[1735142766265,2.87794,3474.8,3473.5,3.0]
[1735142766462,0.8302,3475.1,3473.6,0.71958224]
[1735142766678,0.8302,3475.1,3473.9,0.6908]
[1735142766679,2.87778,3474.9,3473.9,0.6908]
[1735142768722,2.87778,3474.9,3474.1,0.57011095]
[1735142769081,2.87717,3475.7,3474.1,0.57011095]
[1735142769082,2.87744,3475.4,3474.2,2.90710997]
[1735142769281,2.00329823,3475.8,3474.2,2.90710997]
[1735142769282,5.00329823,3475.8,3474.4,0.6908]
[1735142769494,2.00329823,3475.8,3474.5,0.6908]
[1735142769699,4.07394823,3475.8,3474.6,3.56881]
[1735142769900,1.19689823,3475.8,3474.7,0.356881]
[1735142770194,2.87723,3475.6,3474.7,0.356881]
[1735142771991,2.87732,3475.5,3474.7,0.356881]
[1735142772617,0.55,3476.0,3475.0,0.56509582]
[1735142772817,2.87745,3475.3,3475.0,0.56509582]
[1735142773325,2.87769,3475.1,3474.6,0.6908]